Cogmind - Beta 10.2 @@@ ROGUE MODE // 2021.01.19 @ 04:12:34 Player: WayneKnight Result: Self-destructed Performance ------------- Evolutions (6) 3000 Regions Visited (25) 5000 Robots Destroyed (179) 895 Value Destroyed (5866) 5866 Prototype IDs (76) 1520 Alien Tech Used (1) 200 Bonus (1682) 1682 TOTAL SCORE: 18163 Bonus ------- Follower Combat Kills 524 Aligned with FarCom 300 Met Data Miner 300 Met Warlord at Base 500 MAIN.C Attacked Warlord 500 Friendly Fire -442 Cogmind --------- Core Integrity 1056/1150 Matter 296/300 Energy 52/100 System Corruption 0% Temperature Cool (0) Movement Core (850) Ox16 Location -4/Upper Caves Parts ------- > --- POWER (2) -------- (None) > --- PROPULSION (6) --- Cooled Aerolev Unit Cooled Aerolev Unit Improved Antigrav System Improved Gyrokinetic Inverter Improved Gyrokinetic Inverter > --- UTILITY (10) ----- Large Storage Unit High-capacity Storage Unit Experimental Sensor Array > --- WEAPON (2) ------- (None) > --- INVENTORY (18) --- Field Propulsion Drive Field Propulsion Array Long-range Sensor Array Damper Plating Vortex Rail Heavy Phase Cannon Proton Missile Launcher Molecular Deconstructor Chainsword Makeshift Sword Molecular Scythe Molecular Scythe Molecular Scythe Lance Peak State ------------ > --- POWER ------------ Vortex Chain Reactor > --- PROPULSION ------- Cooled Aerolev Unit Improved Antigrav System Improved Antigrav System Improved Gyrokinetic Inverter Cooled Antigrav System Cooled Antigrav System > --- UTILITY ---------- Large Storage Unit Large Storage Unit High-capacity Storage Unit Experimental Signal Interpreter Damper Plating Improved Hacking Suite Improved System Shield Ghost Barrier > --- WEAPON ----------- Molecular Scythe Molecular Scythe > --- INVENTORY -------- Cooled Aerolev Unit Improved Antigrav System Improved Gyrokinetic Inverter Field Propulsion Drive Field Propulsion Array Improved Diametric Drive Long-range Sensor Array Experimental Sensor Array Advanced Signal Interpreter Experimental Cloaking Device Experimental Focal Shield System Backup Module Vortex Rail Heavy Phase Cannon Proton Missile Launcher Chainsword Makeshift Sword Molecular Scythe Lance [Rating: 139] Favorites ----------- Power Nuclear Core Engine Improved Deuterium Engine Power Core Nuclear Core Reactor Vortex Chain Reactor Propulsion Advanced Treads Treads Advanced Treads Leg Aluminum Leg Wheel Armored Wheel Hover Unit Cooled Aerolev Unit Flight Unit Improved Diametric Drive Utility High-capacity Storage Unit Device Long-range Sensor Array Storage High-capacity Storage Unit Processor Enhanced Optical Array Hackware Improved Hacking Suite Protection Light Armor Plating Weapon Heavy Assault Rifle Energy Gun EM Pulse Gun Energy Cannon Heavy Phase Cannon Ballistic Gun Heavy Assault Rifle Ballistic Cannon Light Cannon Launcher Rocket Launcher Slashing Weapon Great Axe Piercing Weapon Lance Build | -11 -10 -10 -9 -9 -9 -8 -8 -7 -7 -7 -6 -6 -6 -6 -6 -6 -5 -5 -5 -5 -5 -4 -4 -4 -4 ------- Run | Scr Mat Min Mat Min Exi Min Mat Fac Was Fac Fac Was Fac Low Low Dat Pro Fac Upp Upp War Pro Fac Upp Upp Slots Evolved 12 | . . . 2 . . . 2 2 . . 2 . . . . . . 2 . . . . 2 . . Power 1 | . . . . . . . . . . . . . . . . . . 1 . . . . . . . Propulsion 3 | . . . . . . . 1 1 . . . . . . . . . . . . . . 1 . . Utility 8 | . . . 2 . . . 1 1 . . 2 . . . . . . 1 . . . . 1 . . Weapon . | . . . . . . . . . . . . . . . . . . . . . . . . . . Parts Attached 310 | 4 9 6 24 6 3 9 27 58 6 32 3 3 7 6 9 1 1 8 3 6 13 1 55 2 8 Power 24 | . 1 . 3 2 . . 1 4 2 3 . 2 . 1 . . . 2 1 1 1 . . . . Engine 9 | . 1 . 2 2 . . . 1 . 1 . 1 . 1 . . . . . . . . . . . Core 13 | . . . 1 . . . 1 3 1 2 . 1 . . . . . 2 1 1 . . . . . Reactor 2 | . . . . . . . . . 1 . . . . . . . . . . . 1 . . . . Propulsion 78 | 2 2 1 5 2 . . 5 20 4 9 1 . 3 1 4 . . 4 . 2 3 . 7 . 3 Treads 25 | 2 2 1 5 2 . . 5 7 1 . . . . . . . . . . . . . . . . Leg . | . . . . . . . . . . . . . . . . . . . . . . . . . . Wheel 10 | . . . . . . . . 6 1 3 . . . . . . . . . . . . . . . Hover 42 | . . . . . . . . 7 2 6 1 . 3 1 4 . . 4 . 2 2 . 7 . 3 Flight 1 | . . . . . . . . . . . . . . . . . . . . . 1 . . . . Utility 120 | 1 3 . 4 1 3 1 12 24 . 18 2 1 4 2 2 . . . 2 . 7 . 30 . 3 Device 58 | . . . . . . . . 11 . 11 1 . 1 2 1 . . . 2 . 6 . 20 . 3 Storage 22 | 1 3 . 2 . 3 . 1 4 . 6 . 1 . . . . . . . . . . 1 . . Processor 7 | . . . . . . . . 4 . . . . 1 . 1 . . . . . . . 1 . . Hackware 6 | . . . . . . . . 1 . 1 1 . 2 . . . . . . . 1 . . . . Protection 27 | . . . 2 1 . 1 11 4 . . . . . . . . . . . . . . 8 . . Artifact . | . . . . . . . . . . . . . . . . . . . . . . . . . . Weapon 88 | 1 3 5 12 1 . 8 9 10 . 2 . . . 2 3 1 1 2 . 3 2 1 18 2 2 Energy Gun 14 | 1 2 3 6 . . 1 . . . . . . . . . . . . . . 1 . . . . Energy Cannon 7 | . . . . . . . 1 . . . . . . . . . . . . . . 1 4 1 . Ballistic Gun 22 | . . 2 3 1 . 3 8 3 . . . . . . 1 . . . . 1 . . . . . Ballistic Cannon 3 | . . . 1 . . . . . . . . . . . 1 . . . . 1 . . . . . Launcher 11 | . 1 . 2 . . 4 . 2 . . . . . 1 . . . . . . . . . . 1 Special Weapon . | . . . . . . . . . . . . . . . . . . . . . . . . . . Impact Weapon . | . . . . . . . . . . . . . . . . . . . . . . . . . . Slashing Weapon 23 | . . . . . . . . 3 . 2 . . . 1 1 1 . . . . 1 . 12 1 1 Piercing Weapon 8 | . . . . . . . . 2 . . . . . . . . 1 2 . 1 . . 2 . . Special Melee Weapon . | . . . . . . . . . . . . . . . . . . . . . . . . . . Unidentified Prototypes 14 | . . . 1 . . . . 2 . . . . 2 . 1 . . . . . 8 . . . . Parts Lost 47 | . . 3 1 2 . 1 7 9 4 7 . . 2 3 . . . 1 . . . . . 1 6 Power 9 | . . . 1 . . . 1 1 1 3 . . . 1 . . . 1 . . . . . . . Propulsion 21 | . . 1 . 1 . . 3 5 3 2 . . 1 2 . . . . . . . . . . 3 Utility 13 | . . . . 1 . 1 3 2 . 1 . . 1 . . . . . . . . . . 1 3 Weapon 4 | . . 2 . . . . . 1 . 1 . . . . . . . . . . . . . . . Highest Loss Streak 4 | . . 3 1 1 . 1 3 3 4 2 . . 1 3 . . . 1 . . . . . 1 3 Average Slot Usage (%) 93 | . 97 99 100 100 100 99 96 95 71 86 83 87 90 79 92 87 98 92 94 92 91 94 87 80 78 Engine 3 | . 14 14 2 10 11 11 2 . . . 6 6 6 5 6 6 6 5 5 5 3 . . . . Core 3 | . . . 8 . . . 6 6 4 5 . . . . . . . 4 5 4 3 . . . . Treads 12 | . 27 27 22 22 22 22 27 11 . . . . . . . . . . . . . . . . . Wheel 1 | . . . . . . . . 7 9 5 . . . . . . . . . . . . . . . Hover 11 | . . . . . . . . 10 13 20 26 26 26 19 26 31 31 27 27 26 27 27 29 30 29 Device 5 | . . . . . . . . 8 7 11 9 13 9 6 6 6 6 4 11 11 11 11 10 10 13 Storage 20 | . 28 28 33 33 33 33 27 16 8 9 6 7 13 13 12 12 12 11 11 11 11 11 14 15 14 Processor 6 | . . . . . . . . 14 15 15 13 13 13 13 19 18 18 15 11 11 11 11 5 5 4 Hackware 5 | . . . . . . . . 3 7 7 13 13 14 13 12 12 12 11 11 11 12 16 15 10 6 Protection 4 | . . . 11 11 11 10 15 . . . . . . . . . . . . . . . . . . Energy Gun 3 | . 25 21 9 . . 6 . . . . . . . . . . . . . . . . . . . Ballistic Gun 7 | . . 6 11 22 22 13 17 5 . . . . . . . . . . . . . . . . . Slashing Weapon 2 | . . . . . . . . 1 . 6 6 6 6 5 5 . 6 3 . . 3 1 5 4 4 Piercing Weapon 1 | . . . . . . . . 4 . . . . . . . . 4 6 11 9 5 5 . . . Naked Turns . | . . . . . . . . . . . . . . . . . . . . . . . . . . Heaviest Build 152 | 17 58 58 80 83 115 120 135 115 65 53 32 48 48 48 52 47 50 57 55 55 85 83 152 105 107 Greatest Support 106 | 40 40 40 44 50 50 50 72 93 48 52 49 49 57 66 66 52 52 78 78 78 86 86 106 106 106 Greatest Overweight (x) 16 | . 1 1 1 1 2 2 1 3 2 4 . . . 15 . . . . . . 1 . 1 . 16 Average Overweight (x) . | . . 1 1 1 1 2 1 . 1 . . . . . . . . . . . . . . . . Largest Inventory Capacity 34 | 8 18 18 24 24 28 28 34 28 18 16 10 16 16 16 16 16 16 16 16 16 16 16 24 24 24 Average Capacity 20 | 6 13 18 24 24 26 28 28 20 10 12 10 11 16 16 16 16 16 16 16 16 16 16 23 24 23 Most Carried 28 | 6 18 18 24 24 28 28 28 28 18 16 10 11 16 16 16 16 15 16 15 16 16 16 24 22 22 Average Carried 19 | 6 9 16 22 23 24 27 27 18 10 11 9 10 15 14 14 15 15 15 13 14 15 15 21 22 20 Final Capacity 28 | 8 18 18 24 24 28 28 28 18 10 10 10 16 16 16 16 16 16 16 16 16 16 16 24 24 18 Final Carried 28 | 6 17 16 24 23 28 28 28 18 10 10 10 11 16 15 15 15 15 16 13 12 16 15 22 22 18 Class Distribution -------------------- 38% | Hauler-Mutant 14% | Hacker-Scout 12% | Mutant 8% | Scavenger-Scout 7% | Hacker-Mutant 6% | Assassin 3% | Hauler-Skirmisher 3% | Hacker-Ninja Dominant Class ---------------- Mutant | -10/Materials Mutant | -10/Mines Hauler-Mutant | -9/Materials Hauler-Mutant | -9/Mines Hauler-Mutant | -9/Exiles Hauler-Mutant | -8/Mines Hauler-Mutant | -8/Materials Assassin | -7/Factory Mutant | -7/Waste Scavenger-Scout | -7/Factory Hacker-Scout | -6/Factory Hacker-Scout | -6/Waste Hacker-Scout | -6/Factory Hacker-Scout | -6/Lower Caves Hacker-Scout | -6/Lower Caves Hacker-Scout | -6/Data Miner Hacker-Scout | -5/Proximity Caves Hacker-Scout | -5/Factory Hacker-Scout | -5/Upper Caves Hacker-Scout | -5/Upper Caves Hacker-Scout | -5/Warlord Hacker-Ninja | -4/Proximity Caves Hacker-Mutant | -4/Factory Hacker-Mutant | -4/Upper Caves Hauler-Mutant | -4/Upper Caves Resources | -11 -10 -10 -9 -9 -9 -8 -8 -7 -7 -7 -6 -6 -6 -6 -6 -6 -5 -5 -5 -5 -5 -4 -4 -4 -4 ----------- Run | Scr Mat Min Mat Min Exi Min Mat Fac Was Fac Fac Was Fac Low Low Dat Pro Fac Upp Upp War Pro Fac Upp Upp Matter Collected 4895 | 210 136 260 447 230 . 138 952 849 50 354 . 50 55 75 107 . 13 . 23 107 162 23 574 20 60 Remotely . | . . . . . . . . . . . . . . . . . . . . . . . . . . Salvage Created 6354 | 53 526 166 881 406 . 195 1188 873 . 532 . . 160 86 42 . . . . . . . 1145 . 101 Parts 444 | 4 35 15 61 28 . 19 82 57 . 33 . . 14 6 5 . . . . . . . 77 . 8 Haulers Intercepted 4 | . 1 . 2 . . . . . . . . . 1 . . . . . . . . . . . . Recyclers Shooed 3 | . . . 1 . . . . 1 . 1 . . . . . . . . . . . . . . . Parts Field Recycled . | . . . . . . . . . . . . . . . . . . . . . . . . . . Retrieved Matter . | . . . . . . . . . . . . . . . . . . . . . . . . . . Parts Self-Destructed 111 | . . . . . . . . . . . . . . 7 . . . . . . 98 . . . 6 Prevented 4 | . . . . . . . . . . . . . . 1 . . . . . . 1 . . . 2 Kills | -11 -10 -10 -9 -9 -9 -8 -8 -7 -7 -7 -6 -6 -6 -6 -6 -6 -5 -5 -5 -5 -5 -4 -4 -4 -4 ------- Run | Scr Mat Min Mat Min Exi Min Mat Fac Was Fac Fac Was Fac Low Low Dat Pro Fac Upp Upp War Pro Fac Upp Upp Combat Hostiles Destroyed 141 | . 13 10 23 7 . 14 25 16 . 10 . . 1 3 . . . . . . . . 15 . 4 Melee 37 | . . . . . . . . 9 . 10 . . 1 1 . . . . . . . . 15 . 1 Guns 77 | . 13 6 19 7 . 1 25 6 . . . . . . . . . . . . . . . . . AOE 27 | . . 4 4 . . 13 . 1 . . . . . 2 . . . . . . . . . . 3 Classes Destroyed 17 | 1 4 2 2 1 . 2 2 2 . . . . . . 1 . . . . . . . . . . Worker 5 | . . 1 . 1 . . . 1 . . . . . . . . . . . . . . 2 . . Builder 2 | . . . . . . 1 . . . . . . . . . . . . . . . . 1 . . Tunneler 2 | . . . . 1 . 1 . . . . . . . . . . . . . . . . . . . Hauler 4 | . 1 . 2 . . . . . . . . . 1 . . . . . . . . . . . . Recycler 2 | 1 . . . . . . . 1 . . . . . . . . . . . . . . . . . Operator 2 | . . . 1 . . . 1 . . . . . . . . . . . . . . . . . . Watcher 21 | . 3 . 1 . . . 4 4 . 2 . . 1 . . . . . . . . . 6 . . Swarmer 51 | . 6 6 12 1 . 8 7 4 . . . . . 3 . . . . . . . . . . 4 Grunt 38 | . 7 1 5 4 . 6 6 4 . 5 . . . . . . . . . . . . . . . Brawler 2 | . . . . . . . 1 1 . . . . . . . . . . . . . . . . . Duelist 1 | . . . . . . . . 1 . . . . . . . . . . . . . . . . . Researcher 1 | . . . . . . . . . . . . . . . 1 . . . . . . . . . . Sentry 18 | . . . 6 2 . . 9 1 . . . . . . . . . . . . . . . . . Hunter 2 | . . . . . . . 2 . . . . . . . . . . . . . . . . . . Programmer 26 | . . . . . . . . 5 . 5 . . 1 . . . . . . . . . 15 . . Zionite 1 | . . . . . . 1 . . . . . . . . . . . . . . . . . . . Assembled 3 | . . 3 . . . . . . . . . . . . . . . . . . . . . . . Thug 1 | . . . . 1 . . . . . . . . . . . . . . . . . . . . . Best Kill Streak 4 | 1 4 3 4 2 . 4 4 3 . 3 . . 1 2 . . . . . . . . 2 . 3 Combat Bots Only 4 | . 4 3 4 2 . 4 4 3 . 3 . . 1 2 . . . . . . . . 2 . 3 Max Kills in Single Turn 3 | 1 2 2 2 2 . 3 2 1 . 1 . . 1 2 1 . . . . . . . 1 . 3 Gunslinging 1 | . 1 . . 1 . . 1 . . . . . . . . . . . . . . . . . . Exploded 3 | . . 2 2 . . 3 . 1 . . . . . 2 . . . . . . . . . . 3 Melee 1 | . . . . . . . . 1 . 1 . . 1 1 . . . . . . . . 1 . 1 Uniques/NPCs Destroyed 1 | . . . . 1 . . . . . . . . . . . . . . . . . . . . . YI-UF0 (-9/Mines) Combat | -11 -10 -10 -9 -9 -9 -8 -8 -7 -7 -7 -6 -6 -6 -6 -6 -6 -5 -5 -5 -5 -5 -4 -4 -4 -4 -------- Run | Scr Mat Min Mat Min Exi Min Mat Fac Was Fac Fac Was Fac Low Low Dat Pro Fac Upp Upp War Pro Fac Upp Upp Damage Taken 9018 | . 342 522 835 571 . 229 1818 1741 175 913 . . 283 387 . . . 303 . . 40 . 174 157 528 Core 1289 | . 93 51 127 44 . . 156 198 6 279 . . 32 130 . . . 79 . . . . 7 . 87 Absorbed by Shields . | . . . . . . . . . . . . . . . . . . . . . . . . . . Core Remaining (%) 67 | 100 . 42 . . . 57 71 . . 31 . . . . . . 80 . . . . 92 . . . Volleys Fired 370 | 5 31 30 83 27 . 18 107 39 . . . . . 3 1 . . . . 3 . 6 10 6 1 Largest 2 | 2 2 2 2 2 . 2 2 2 . . . . . 1 1 . . . . 2 . 1 1 1 1 Hottest 100 | 90 100 80 96 46 . 79 98 53 . . . . . 39 57 . . . . 85 . 98 98 98 39 Shots Fired 678 | 10 60 53 165 54 . 19 214 70 . . . . . 3 1 . . . . 6 . 6 10 6 1 Gun 616 | 10 60 51 160 54 . 2 211 65 . . . . . . . . . . . 3 . . . . . Cannon 32 | . . . 3 . . . 3 . . . . . . . 1 . . . . 3 . 6 10 6 . Launcher 30 | . . 2 2 . . 17 . 5 . . . . . 3 . . . . . . . . . . 1 Special . | . . . . . . . . . . . . . . . . . . . . . . . . . . Kinetic 452 | . . 22 99 54 . 1 204 65 . . . . . . 1 . . . . 6 . . . . . Thermal 93 | 10 32 . 18 . . 1 10 . . . . . . . . . . . . . . 6 10 6 . Explosive 24 | . . 2 2 . . 17 . 3 . . . . . . . . . . . . . . . . . Electromagnetic 109 | . 28 29 46 . . . . 2 . . . . . 3 . . . . . . . . . . 1 Robot Hit Streak 28 | 3 13 8 9 20 . 3 28 25 . . . . . 1 . . . . . 3 . . . . 1 Robot Miss Streak 4 | 2 4 3 4 4 . 4 3 2 . . . . . 1 . . . . . 1 . . . . . Penetration Max 1 | . . . . . . . . 1 . . . . . . . . . . . . . . . . . Secondary Targets 9 | . 2 . 3 1 . . 3 . . . . . . . . . . . . . . . . . . Max Gunslinging Chain 1 | . 1 . 1 1 . . 1 . . . . . . . . . . . . . . . . . . Shots Hit Robots 598 | 6 41 36 100 38 . 6 159 83 . 43 . . 9 3 2 . . 2 . 4 . . 59 . 7 Core Hits 277 | 2 23 17 43 15 . 25 58 38 . 13 . . 3 5 2 . . 2 . 1 . . 26 . 4 Critical Hits 10 | . . 1 . 1 . . 2 1 . 3 . . . . . . . . . 1 . . 1 . . Critical Kills 4 | . . . . 1 . . . 1 . 1 . . . . . . . . . . . . 1 . . Critical Parts Destroyed 6 | . . 1 . . . . 2 . . 2 . . . . . . . . . 1 . . . . . Melee Attacks 364 | . . . . . . . . 49 . 74 . . 42 5 9 . 4 16 . 3 . 1 143 1 17 Impact . | . . . . . . . . . . . . . . . . . . . . . . . . . . Slashing 311 | . . . . . . . . 21 . 74 . . 42 5 9 . 1 3 . . . 1 137 1 17 Piercing 53 | . . . . . . . . 28 . . . . . . . . 3 13 . 3 . . 6 . . Sneak Attacks 20 | . . . . . . . . 3 . 4 . . 4 . 1 . . . . . . . 8 . . Combat Hostiles 1 | . . . . . . . . . . . . . . . . . . . . . . . 1 . . Follow-up Attacks 10 | . . . . . . . . 1 . . . . . . . . . . . . . . 9 . . Damage Inflicted 17286 | 73 736 524 1527 657 . 1319 2404 2499 . 2089 . . 734 258 182 . . 92 . 113 . . 3678 . 401 Guns 6028 | 73 540 300 1183 641 . 15 2269 962 . . . . . . . . . . . 45 . . . . . Cannons 136 | . . . 18 . . . 50 . . . . . . . . . . . . 68 . . . . . Explosions 2580 | . 183 141 283 . . 1285 . 396 . . . . . 180 . . . . . . . . . . 112 Melee 8205 | . . . . . . . . 1118 . 2089 . . 734 78 182 . . 56 . . . . 3678 . 270 Ramming 337 | . 13 83 43 16 . 19 85 23 . . . . . . . . . 36 . . . . . . 19 Kinetic 4769 | . . 114 771 641 . . 2168 962 . . . . . . . . . . . 113 . . . . . Thermal 847 | 73 446 45 117 . . 15 151 . . . . . . . . . . . . . . . . . . Explosive 1962 | . . 96 283 . . 1285 . 298 . . . . . . . . . . . . . . . . . Electromagnetic 1166 | . 277 186 313 . . . . 98 . . . . . 180 . . . . . . . . . . 112 Impact . | . . . . . . . . . . . . . . . . . . . . . . . . . . Slashing 7516 | . . . . . . . . 485 . 2089 . . 734 78 182 . . . . . . . 3678 . 270 Piercing 689 | . . . . . . . . 633 . . . . . . . . . 56 . . . . . . . Highest Corruption 4 | . . . . . . . . 2 . 4 . . 1 1 1 1 1 . . . . . 2 . . Average Corruption 1 | . . . . . . . . 1 . 1 . . 1 1 1 1 1 . . . . . 1 . . Corruption Purged 11 | . . . . . . . . 2 . 6 . . . . . . . . . . . . 3 . . Effects 43 | . . . . . . . . 8 . 21 . . . 4 3 . 1 . . . . . 6 . . Message Errors 13 | . . . . . . . . 2 . 4 . . . 4 1 . . . . . . . 2 . . Matter Fused 6 | . . . . . . . . . . 6 . . . . . . . . . . . . . . . Heat Flow Errors 3 | . . . . . . . . 1 . 1 . . . . . . . . . . . . 1 . . Energy Discharges 10 | . . . . . . . . 4 . 3 . . . . 1 . . . . . . . 2 . . Data Loss (minor) 9 | . . . . . . . . 1 . 5 . . . . 1 . 1 . . . . . 1 . . Targeting Errors 2 | . . . . . . . . . . 2 . . . . . . . . . . . . . . . Overload Shots . | . . . . . . . . . . . . . . . . . . . . . . . . . . Overflow Damage 1303 | . . 1 . . . 47 5 32 . 346 . . 176 18 . . . . . . . . 631 . 47 Projectiles 5 | . . . . . . . 5 . . . . . . . . . . . . . . . . . . Explosions 61 | . . . . . . 47 . 14 . . . . . . . . . . . . . . . . . Melee 1237 | . . 1 . . . . . 18 . 346 . . 176 18 . . . . . . . . 631 . 47 Knockbacks 3 | . . 1 . . . . . . . . . . . . . . . . . 2 . . . . . Impact 1 | . . 1 . . . . . . . . . . . . . . . . . . . . . . . Kinetic 2 | . . . . . . . . . . . . . . . . . . . . 2 . . . . . Secondary . | . . . . . . . . . . . . . . . . . . . . . . . . . . Self-Inflicted Damage 375 | . 48 71 3 . . 68 . 124 . . . . . 16 . . . 18 . . . . . . 27 Shots 15 | . 1 2 1 . . 3 . 4 . . . . . 3 . . . . . . . . . . 1 Rammed 32 | . 3 7 6 4 . . 7 1 . . . . . . . . . 2 . . . . . . 2 Targets Rammed 33 | . 3 7 6 4 . 1 7 1 . . . . . . . . . 2 . . . . . . 2 Kicked . | . . . . . . . . . . . . . . . . . . . . . . . . . . Crushed 1 | . . . . . . 1 . . . . . . . . . . . . . . . . . . . Highest Temperature 318 | 150 234 144 318 36 . 15 150 90 . 220 . . . . . . . 28 86 79 . 142 176 302 . Average Temperature 50 | 71 86 54 59 11 . 6 37 14 . 113 . . . . . . . 12 43 31 . 75 71 141 . Received Heat Transfer 1650 | . 96 45 297 210 . 27 459 285 . 153 . . 33 . . . . . . . 18 . . 27 . Siege Activations . | . . . . . . . . . . . . . . . . . . . . . . . . . . Robots Corrupted . | . . . . . . . . . . . . . . . . . . . . . . . . . . Combat Hostiles . | . . . . . . . . . . . . . . . . . . . . . . . . . . Parts Fried 3 | . 2 . . . . . . . . . . . . 1 . . . . . . . . . . . Impact Corruptions 1 | . . 1 . . . . . . . . . . . . . . . . . . . . . . . Robots Melted . | . . . . . . . . . . . . . . . . . . . . . . . . . . Combat Hostiles . | . . . . . . . . . . . . . . . . . . . . . . . . . . Parts Melted 5 | . 4 . . . . . 1 . . . . . . . . . . . . . . . . . . Heat Transferred 1891 | 198 977 50 296 . . 37 333 . . . . . . . . . . . . . . . . . . Parts Sabotaged . | . . . . . . . . . . . . . . . . . . . . . . . . . . Parts Stolen 14 | . . . . . . . . . . . . . . . 2 . . . . 5 . . . . 7 Parts Stripped . | . . . . . . . . . . . . . . . . . . . . . . . . . . Power Chain Reactions 3 | . 2 1 . . . . . . . . . . . . . . . . . . . . . . . Missiles Intercepted . | . . . . . . . . . . . . . . . . . . . . . . . . . . Alert | -11 -10 -10 -9 -9 -9 -8 -8 -7 -7 -7 -6 -6 -6 -6 -6 -6 -5 -5 -5 -5 -5 -4 -4 -4 -4 ------- Run | Scr Mat Min Mat Min Exi Min Mat Fac Was Fac Fac Was Fac Low Low Dat Pro Fac Upp Upp War Pro Fac Upp Upp Peak Influence 467 | 5 326 214 326 242 . 243 320 319 111 467 140 115 235 . . . . 142 . . . . 207 . . Initial 144 | . 3 39 . 118 . . 50 144 111 7 137 49 . . . . . 46 . . . . . . . Average 109 | 3 141 47 186 90 . 102 127 112 32 127 139 69 64 . . . . 89 . . . . 70 . . Maximum Alert Level 2 | . 1 1 1 1 . 1 1 1 . 2 . . 1 . . . . . . . . . 1 . . Low Security (%) 77 | 100 80 88 44 96 . 93 63 74 100 69 100 100 89 . . . . 100 . . . . 99 . . Level 1 22 | . 19 11 55 3 . 6 36 25 . 24 . . 10 . . . . . . . . . . . . Level 2 . | . . . . . . . . . . 5 . . . . . . . . . . . . . . . Level 3 . | . . . . . . . . . . . . . . . . . . . . . . . . . . Level 4 . | . . . . . . . . . . . . . . . . . . . . . . . . . . Level 5 . | . . . . . . . . . . . . . . . . . . . . . . . . . . High Security . | . . . . . . . . . . . . . . . . . . . . . . . . . . Max Security . | . . . . . . . . . . . . . . . . . . . . . . . . . . Squads Dispatched 42 | . 3 . 1 1 . . 4 8 . 10 . . 6 . . . . 3 . . . . 6 . . Investigation 8 | . 2 . 1 . . . 1 . . 1 . . 2 . . . . 1 . . . . . . . Extermination 17 | . . . . . . . . 4 . 5 . . 1 . . . . 1 . . . . 6 . . Reinforcement 16 | . 1 . . . . . 3 4 . 4 . . 3 . . . . 1 . . . . . . . Assault 1 | . . . . 1 . . . . . . . . . . . . . . . . . . . . . Garrison . | . . . . . . . . . . . . . . . . . . . . . . . . . . Intercept . | . . . . . . . . . . . . . . . . . . . . . . . . . . Construction Impeded 1 | . . . . . . . . . . 1 . . . . . . . . . . . . . . . Haulers Reinforced 1 | . . . . . . . . . . 1 . . . . . . . . . . . . . . . Stealth | -11 -10 -10 -9 -9 -9 -8 -8 -7 -7 -7 -6 -6 -6 -6 -6 -6 -5 -5 -5 -5 -5 -4 -4 -4 -4 --------- Run | Scr Mat Min Mat Min Exi Min Mat Fac Was Fac Fac Was Fac Low Low Dat Pro Fac Upp Upp War Pro Fac Upp Upp Distress Signals 12 | . 1 . 2 . . . 3 1 . 3 . . . . . . . . . . . . 2 . . Communications Jammed . | . . . . . . . . . . . . . . . . . . . . . . . . . . Distress Signals . | . . . . . . . . . . . . . . . . . . . . . . . . . . Times Spotted 333 | . 25 13 45 12 . 13 47 35 4 32 . 1 20 4 3 . 5 7 . 5 7 3 34 4 14 Peak Tracking Total 9 | . 4 3 4 3 . 4 5 4 1 5 . 1 9 4 2 . 5 5 . 5 7 4 3 2 6 Tactical Retreats 38 | . 4 1 4 4 . . 5 3 . . . 1 4 . . . 1 1 . . . 2 . 4 4 Traps | -11 -10 -10 -9 -9 -9 -8 -8 -7 -7 -7 -6 -6 -6 -6 -6 -6 -5 -5 -5 -5 -5 -4 -4 -4 -4 ------- Run | Scr Mat Min Mat Min Exi Min Mat Fac Was Fac Fac Was Fac Low Low Dat Pro Fac Upp Upp War Pro Fac Upp Upp Traps Triggered 14 | . . . 1 . . . 2 1 . 2 1 . 3 . . . . 1 . . . . 3 . . Indirectly . | . . . . . . . . . . . . . . . . . . . . . . . . . . Trap Hack Attempts . | . . . . . . . . . . . . . . . . . . . . . . . . . . Triggered . | . . . . . . . . . . . . . . . . . . . . . . . . . . Disarmed . | . . . . . . . . . . . . . . . . . . . . . . . . . . Reprogrammed . | . . . . . . . . . . . . . . . . . . . . . . . . . . Reused . | . . . . . . . . . . . . . . . . . . . . . . . . . . Traps Extracted . | . . . . . . . . . . . . . . . . . . . . . . . . . . Installed . | . . . . . . . . . . . . . . . . . . . . . . . . . . Triggered 13 | . . . . . . . . . . . . . . . . . . . 1 . 12 . . . . Exploded 1 | . . . . . 1 . . . . . . . . . . . . . . . . . . . . Machines | -11 -10 -10 -9 -9 -9 -8 -8 -7 -7 -7 -6 -6 -6 -6 -6 -6 -5 -5 -5 -5 -5 -4 -4 -4 -4 ---------- Run | Scr Mat Min Mat Min Exi Min Mat Fac Was Fac Fac Was Fac Low Low Dat Pro Fac Upp Upp War Pro Fac Upp Upp Machines Disabled 8 | . 2 . . . . . 1 . . 3 . . . . . . . . . 1 . . . . 1 Max in Single Turn 1 | . 1 . . . . . 1 . . . . . . . . . . . . 1 . . . . 1 Garrison Access 11 | . . . . . . . 1 4 . 1 1 . 3 . . . . . . . . . 1 . . Machines Sabotaged . | . . . . . . . . . . . . . . . . . . . . . . . . . . Garrisons Compromised . | . . . . . . . . . . . . . . . . . . . . . . . . . . Overloaded Fab Kills . | . . . . . . . . . . . . . . . . . . . . . . . . . . Fab Network Shutdowns 1 | . . . . . . . . . . 1 . . . . . . . . . . . . . . . Hacking | -11 -10 -10 -9 -9 -9 -8 -8 -7 -7 -7 -6 -6 -6 -6 -6 -6 -5 -5 -5 -5 -5 -4 -4 -4 -4 --------- Run | Scr Mat Min Mat Min Exi Min Mat Fac Was Fac Fac Was Fac Low Low Dat Pro Fac Upp Upp War Pro Fac Upp Upp Machines Accessed 134 | . 9 1 9 1 2 . 12 17 . 15 2 . 24 . 1 4 . 7 1 2 11 . 16 . . Terminals 75 | . 7 1 6 . . . 7 11 . 10 1 . 15 . . . . 6 1 . . . 10 . . Fabricators 8 | . . . . . . . . . . 2 . . 1 . . . . 1 . . . . 4 . . Repair Stations 4 | . 1 . 1 . . . 1 1 . . . . . . . . . . . . . . . . . Recycling Units 9 | . 1 . 1 . . . 1 1 . 1 . . 3 . . . . . . . . . 1 . . Scanalyzers 5 | . . . 1 . . . 2 . . . . . 2 . . . . . . . . . . . . Garrison Access 12 | . . . . . . . 1 4 . 2 1 . 3 . . . . . . . . . 1 . . Total Hacks 420 | . 28 5 29 1 2 . 34 36 . 32 6 . 77 . 1 29 . 29 1 10 20 . 80 . . Successful 260 | . 15 . 14 1 2 . 25 16 . 19 3 . 48 . 1 29 . 13 1 10 20 . 43 . . Failed 158 | . 13 5 14 . . . 8 20 . 13 3 . 29 . . . . 16 . . . . 37 . . Catastrophic 17 | . . . 2 . . . . 2 . 2 . . 3 . . . . 3 . . . . 5 . . Database Lockouts 2 | . . . 1 . . . 1 . . . . . . . . . . . . . . . . . . Manual 186 | . 18 5 19 . 1 . 15 18 . 15 1 . 27 . . . . 16 . . 1 . 49 . 1 Terminals 263 | . 21 5 22 . . . 23 25 . 24 4 . 53 . . . . 25 1 . . . 60 . . Fabricators 27 | . . . . . . . . . . 4 . . 2 . . . . 4 . . . . 17 . . Repair Stations 17 | . 6 . 4 . . . 4 3 . . . . . . . . . . . . . . . . . Recycling Units 15 | . 1 . 1 . . . 1 3 . 1 . . 6 . . . . . . . . . 2 . . Scanalyzers 15 | . . . 2 . . . 4 . . . . . 9 . . . . . . . . . . . . Garrison Access 20 | . . . . . . . 2 5 . 3 2 . 7 . . . . . . . . . 1 . . Terminal Hacks 133 | . 5 . 3 1 2 . 9 3 . 7 1 . 20 . 1 29 . 5 1 10 20 . 16 . . Record 36 | . . . . . 1 . . . . . . . . . . 11 . . 1 10 12 . 1 . . Part Schematic 17 | . . . . . . . . . . 2 . . 2 . . 10 . 1 . . . . 2 . . Robot Schematic 5 | . . . . . . . . . . . . . . . . 5 . . . . . . . . . Robot Analysis 6 | . 1 . 2 . . . 1 . . . . . 2 . . . . . . . . . . . . Prototype ID Bank 17 | . 1 . . . . . 1 . . . . . 4 . . 3 . . . . 6 . 2 . . Open Door 4 | . . . . 1 . . . . . . . . . . 1 . . . . . 2 . . . . Level Access Points 1 | . . . . . . . . . . . . . . . . . . . . . . . 1 . . Branch Access Points 2 | . . . . . . . . . . . . . 1 . . . . . . . . . 1 . . Emergency Access Points 2 | . . . . . . . . . . . . . 2 . . . . . . . . . . . . Machine Index 1 | . . . . . . . . . . . . . 1 . . . . . . . . . . . . Terminal Index 1 | . . . . . . . . . . . . . . . . . . . . . . . 1 . . Fabricator Index 1 | . . . . . . . . . . . . . . . . . . . . . . . 1 . . Garrison Index 4 | . . . . . . . . 1 . 1 . . . . . . . 1 . . . . 1 . . Alert Level 6 | . . . 1 . . . 2 1 . . . . 1 . . . . . . . . . 1 . . Unreport Threat 5 | . . . . . . . 2 . . 1 . . . . . . . . . . . . 2 . . Locate Traps 11 | . 3 . . . . . 1 1 . 2 1 . . . . . . 2 . . . . 1 . . Hauler Manifests 2 | . . . . . . . 1 . . . . . 1 . . . . . . . . . . . . Zone Layout 11 | . . . . . . . 1 . . 1 . . 6 . . . . 1 . . . . 2 . . EX-Prototype ID Bank 1 | . . . . . 1 . . . . . . . . . . . . . . . . . . . . Fabricator Hacks 11 | . . . . . . . . . . 3 . . . . . . . 1 . . . . 7 . . Network Status 3 | . . . . . . . . . . 1 . . . . . . . . . . . . 2 . . Load Schematic 5 | . . . . . . . . . . 1 . . . . . . . 1 . . . . 3 . . Build 3 | . . . . . . . . . . 1 . . . . . . . . . . . . 2 . . Repair Station Hacks 16 | . 6 . 4 . . . 4 2 . . . . . . . . . . . . . . . . . Scan Component 8 | . 3 . 2 . . . 2 1 . . . . . . . . . . . . . . . . . Repair 8 | . 3 . 2 . . . 2 1 . . . . . . . . . . . . . . . . . Recycling Unit Hacks 9 | . . . 1 . . . 1 2 . 1 . . 3 . . . . . . . . . 1 . . Report Inventory 8 | . . . 1 . . . 1 1 . 1 . . 3 . . . . . . . . . 1 . . Retrieve Components 1 | . . . . . . . . 1 . . . . . . . . . . . . . . . . . Scanalyzer 15 | . . . 2 . . . 4 . . . . . 9 . . . . . . . . . . . . Insert Component 7 | . . . 1 . . . 2 . . . . . 4 . . . . . . . . . . . . Analyze 8 | . . . 1 . . . 2 . . . . . 5 . . . . . . . . . . . . Garrison Access Hacks 11 | . . . . . . . 1 4 . 1 1 . 3 . . . . . . . . . 1 . . Seal Access 11 | . . . . . . . 1 4 . 1 1 . 3 . . . . . . . . . 1 . . Unauthorized Hacks 65 | . 4 . 4 . . . 6 5 . 7 1 . 13 . . . . 7 . . . . 18 . . Terminals 53 | . 3 . 4 . . . 6 5 . 6 1 . 10 . . . . 6 . . . . 12 . . Track 20 | . 2 . 2 . . . 2 . . 2 . . 5 . . . . 1 . . . . 6 . . Assimilate 7 | . . . . . . . 1 1 . . . . 1 . . . . 1 . . . . 3 . . Botnet 26 | . 1 . 2 . . . 3 4 . 4 1 . 4 . . . . 4 . . . . 3 . . Fabricators 8 | . . . . . . . . . . 1 . . 1 . . . . 1 . . . . 5 . . Prioritize 1 | . . . . . . . . . . . . . . . . . . . . . . . 1 . . Siphon 7 | . . . . . . . . . . 1 . . 1 . . . . 1 . . . . 4 . . Repair Stations . | . . . . . . . . . . . . . . . . . . . . . . . . . . Recycling Units 4 | . 1 . . . . . . . . . . . 2 . . . . . . . . . 1 . . Recyclers 3 | . . . . . . . . . . . . . 2 . . . . . . . . . 1 . . Tunnel 1 | . 1 . . . . . . . . . . . . . . . . . . . . . . . . Scanalyzers . | . . . . . . . . . . . . . . . . . . . . . . . . . . Garrison Access . | . . . . . . . . . . . . . . . . . . . . . . . . . . Data Cores Recovered 1 | . . . 1 . . . . . . . . . . . . . . . . . . . . . . Used 1 | . . . 1 . . . . . . . . . . . . . . . . . . . . . . Hacking Detections 89 | . 8 1 8 . . . 10 11 . 13 2 . 18 . . . . 7 . . . . 11 . . Full Trace Events 3 | . 1 . . . . . . . . 1 . . 1 . . . . . . . . . . . . Feedback Events 1 | . . . . . . . . . . . . . 1 . . . . . . . . . . . . Corruption 1 | . . . . . . . . . . . . . 1 . . . . . . . . . . . . Feedback Blocked . | . . . . . . . . . . . . . . . . . . . . . . . . . . Robot Schematics Acquired 5 | . . . . . . . . . . . . . . . . 5 . . . . . . . . . Robots Built . | . . . . . . . . . . . . . . . . . . . . . . . . . . Matter . | . . . . . . . . . . . . . . . . . . . . . . . . . . Time . | . . . . . . . . . . . . . . . . . . . . . . . . . . Total Robot Build Rating . | . . . . . . . . . . . . . . . . . . . . . . . . . . Part Schematics Acquired 24 | . . . 1 . . . 2 . . 2 . . 6 . . 10 . 1 . . . . 2 . . Parts Built 3 | . . . . . . . . . . 1 . . . . . . . . . . . . 2 . . Matter 594 | . . . . . . . . . . 168 . . . . . . . . . . . . 426 . . Time 312 | . . . . . . . . . . 84 . . . . . . . . . . . . 228 . . Total Part Build Rating 14 | . . . . . . . . . . 4 . . . . . . . . . . . . 10 . . Parts Repaired 8 | . 3 . 2 . . . 2 1 . . . . . . . . . . . . . . . . . Time 264 | . 78 . 52 . . . 83 51 . . . . . . . . . . . . . . . . . Parts Recycled . | . . . . . . . . . . . . . . . . . . . . . . . . . . Recycled Matter . | . . . . . . . . . . . . . . . . . . . . . . . . . . Retrieved Matter . | . . . . . . . . . . . . . . . . . . . . . . . . . . Retrieved Components 7 | . . . . . . . . 7 . . . . . . . . . . . . . . . . . Parts Scanalyzed 7 | . . . 1 . . . 2 . . . . . 4 . . . . . . . . . . . . Part Schematics Acquired 7 | . . . 1 . . . 2 . . . . . 4 . . . . . . . . . . . . Parts Damaged . | . . . . . . . . . . . . . . . . . . . . . . . . . . Bothacking | -11 -10 -10 -9 -9 -9 -8 -8 -7 -7 -7 -6 -6 -6 -6 -6 -6 -5 -5 -5 -5 -5 -4 -4 -4 -4 ------------ Run | Scr Mat Min Mat Min Exi Min Mat Fac Was Fac Fac Was Fac Low Low Dat Pro Fac Upp Upp War Pro Fac Upp Upp Used RIF Installer . | . . . . . . . . . . . . . . . . . . . . . . . . . . Robots Hacked . | . . . . . . . . . . . . . . . . . . . . . . . . . . Non-combat . | . . . . . . . . . . . . . . . . . . . . . . . . . . Combat . | . . . . . . . . . . . . . . . . . . . . . . . . . . Robot Hacks Applied . | . . . . . . . . . . . . . . . . . . . . . . . . . . Relay Couplers Released 4 | . . . . . . . . . . . . . . . . . . . . . . . 4 . . Programmers 4 | . . . . . . . . . . . . . . . . . . . . . . . 4 . . Robots Rewired . | . . . . . . . . . . . . . . . . . . . . . . . . . . Allies Hacked . | . . . . . . . . . . . . . . . . . . . . . . . . . . Hacks Repelled . | . . . . . . . . . . . . . . . . . . . . . . . . . . Allies | -11 -10 -10 -9 -9 -9 -8 -8 -7 -7 -7 -6 -6 -6 -6 -6 -6 -5 -5 -5 -5 -5 -4 -4 -4 -4 -------- Run | Scr Mat Min Mat Min Exi Min Mat Fac Was Fac Fac Was Fac Low Low Dat Pro Fac Upp Upp War Pro Fac Upp Upp Total Allies 47 | . . 3 . 1 . . 1 1 20 . . 18 . . . . 1 . . . . . 2 . . Largest Group 20 | . . 3 2 1 . . 1 1 20 12 . 18 2 . . . 1 . . . . . 2 . . Highest-Rated Group 650 | . . 40 32 31 . . 10 10 530 350 . 650 50 . . . 94 . . . . . 49 . . Highest-Rated Ally 94 | . . 16 16 31 . . 10 10 35 35 . 50 25 . . . 94 . . . . . 26 . . Total Orders 1 | . . . . . . . . . . . . . . . . . . . . . . . 1 . . STAY 1 | . . . . . . . . . . . . . . . . . . . . . . . 1 . . Ally Attacks 259 | . . 21 15 8 . . . . 62 36 . 102 11 . . . 4 . . . . . . . . Total Damage 8638 | . . 183 173 128 . . . . 1671 1434 . 4802 200 . . . 47 . . . . . . . . Kills 40 | . . 4 4 3 . . . . 8 10 . 11 . . . . . . . . . . . . . Allies Corrupted . | . . . . . . . . . . . . . . . . . . . . . . . . . . Allies Melted . | . . . . . . . . . . . . . . . . . . . . . . . . . . Turrets Deployed 1 | . . . . . . . . 1 . . . . . . . . . . . . . . . . . Intel | -11 -10 -10 -9 -9 -9 -8 -8 -7 -7 -7 -6 -6 -6 -6 -6 -6 -5 -5 -5 -5 -5 -4 -4 -4 -4 ------- Run | Scr Mat Min Mat Min Exi Min Mat Fac Was Fac Fac Was Fac Low Low Dat Pro Fac Upp Upp War Pro Fac Upp Upp Robot Analysis Total 6 | . 1 . 2 . . . 1 . . . . . 2 . . . . . . . . . . . . Derelict Logs Recovered 12 | . . 1 . 1 . . . . . . . . . 2 2 . 1 . . 2 . . . 2 1 Drone Launches . | . . . . . . . . . . . . . . . . . . . . . . . . . . Drone Recoveries . | . . . . . . . . . . . . . . . . . . . . . . . . . . Exploration | -11 -10 -10 -9 -9 -9 -8 -8 -7 -7 -7 -6 -6 -6 -6 -6 -6 -5 -5 -5 -5 -5 -4 -4 -4 -4 ------------- Run | Scr Mat Min Mat Min Exi Min Mat Fac Was Fac Fac Was Fac Low Low Dat Pro Fac Upp Upp War Pro Fac Upp Upp Turns Passed 33176 | 43 1472 1647 2300 1315 718 1381 6006 4755 523 2911 63 469 1379 647 555 41 265 360 138 299 878 486 3538 206 781 Spaces Moved 24946 | 19 695 693 1105 656 385 530 1321 3302 360 2456 130 519 2315 640 707 91 532 422 307 594 1373 719 3895 406 774 Core 3 | . . . . . . . . . . . . . . 1 . . . . . . . . . . 2 Treads 6244 | 2 695 693 1105 656 385 530 1321 857 . . . . . . . . . . . . . . . . . Legs 17 | 17 . . . . . . . . . . . . . . . . . . . . . . . . . Wheels 1659 | . . . . . . . . 864 70 725 . . . . . . . . . . . . . . . Hover 17023 | . . . . . . . . 1581 290 1731 130 519 2315 639 707 91 532 422 307 594 1373 719 3895 406 772 Flight . | . . . . . . . . . . . . . . . . . . . . . . . . . . Fastest Speed 33 | 120 160 180 165 165 172 192 170 48 100 45 45 45 40 45 43 43 43 40 44 42 36 36 33 36 36 Average Speed 81 | 124 171 180 168 170 184 192 171 98 113 61 45 45 40 46 43 43 43 42 44 43 40 36 43 36 69 Slowest Speed 850 | 160 180 180 180 172 192 192 175 177 151 130 45 45 45 800 45 43 43 44 44 44 95 36 92 36 850 Overloaded Moves . | . . . . . . . . . . . . . . . . . . . . . . . . . . Propulsion Burnouts . | . . . . . . . . . . . . . . . . . . . . . . . . . . Robots Hopped . | . . . . . . . . . . . . . . . . . . . . . . . . . . Cave-ins Triggered . | . . . . . . . . . . . . . . . . . . . . . . . . . . Exploration Rate (%) 69 | 3 87 97 78 99 71 97 85 73 92 62 4 92 64 80 75 80 66 15 66 81 94 71 54 61 69 Regions Visited 25 Branch Regions 14 Pre-discovered Areas 11 | . 1 1 . 1 1 . . . . . . . . 1 1 1 . . . 2 . . . 1 1 Known Exits Taken 14 | . . . . . . 1 . . . 1 . . 1 1 1 1 1 1 1 1 1 1 1 1 . Unknown Exits Taken 7 | 1 1 1 1 1 1 . 1 . . . . . . . . . . . . . . . . . . Scrap Searched 25 | . . 1 . 1 . 3 . . . . . . . 5 1 . 2 . 1 4 . 2 . 3 2 Spaces Dug 132 | . . . . . . . . 4 . 14 . . 28 1 6 . 3 10 . 1 . 7 49 7 2 Terrain Destroyed 383 | . 9 22 15 . . 164 1 43 . 14 . . 28 1 6 . 3 10 . 2 . 7 49 7 2 Melee 109 | . . . . . . . . 4 . 14 . . 28 1 5 . 3 10 . 1 . 1 39 1 2 Projectile 25 | . . . . . . . 1 . . . . . . . 1 . . . . 1 . 6 10 6 . AOE 249 | . 9 22 15 . . 164 . 39 . . . . . . . . . . . . . . . . . Terrain Rammed . | . . . . . . . . . . . . . . . . . . . . . . . . . . Walls Destroyed . | . . . . . . . . . . . . . . . . . . . . . . . . . . Machines Disabled . | . . . . . . . . . . . . . . . . . . . . . . . . . . Actions | -11 -10 -10 -9 -9 -9 -8 -8 -7 -7 -7 -6 -6 -6 -6 -6 -6 -5 -5 -5 -5 -5 -4 -4 -4 -4 --------- Run | Scr Mat Min Mat Min Exi Min Mat Fac Was Fac Fac Was Fac Low Low Dat Pro Fac Upp Upp War Pro Fac Upp Upp Total 36470 | 27 918 1038 1392 797 391 871 4864 4685 476 3715 133 753 2691 972 939 92 562 584 309 622 1697 938 5557 456 991 Wait 10118 | . 163 299 133 98 . 310 3351 1164 103 1117 . 229 314 317 204 . 27 128 . 13 293 211 1417 42 185 Move 24923 | 18 694 692 1104 655 384 529 1320 3302 359 2455 130 518 2314 639 706 90 531 421 306 593 1372 718 3894 405 774 Hop . | . . . . . . . . . . . . . . . . . . . . . . . . . . Pick Up 150 | . 12 3 21 2 3 2 22 23 2 18 . 2 8 2 7 . . 3 . 3 6 . 10 . 1 Fast Attach 58 | 1 1 . 4 1 . 1 6 14 4 4 1 . 2 . 1 . 1 1 . . 7 . 9 . . Attach 101 | . 1 3 3 2 . . 8 17 2 8 1 1 2 2 5 1 . 1 3 3 . . 32 . 6 Detach 65 | . . . . . . . 2 10 1 2 . . 2 . 1 1 . 2 . 1 4 . 36 . 3 Swap 152 | 3 7 3 17 3 3 8 13 27 . 20 1 2 3 4 4 . . 6 . 3 6 1 14 2 2 Drop 154 | . 6 1 21 5 1 2 28 40 5 12 . 1 4 . 1 . . 7 . . 9 1 10 . . Fire 370 | 5 31 30 83 27 . 18 107 39 . . . . . 3 1 . . . . 3 . 6 10 6 1 Melee 341 | . . . . . . . . 48 . 74 . . 42 5 9 . 3 13 . 3 . 1 125 1 17 Ram 4 | . . . . . . . . . . . . . . . . . . 2 . . . . . . 2 Kick . | . . . . . . . . . . . . . . . . . . . . . . . . . . Crush 29 | . 3 7 6 4 . 1 7 1 . . . . . . . . . . . . . . . . . Escape Stasis 5 | . . . . . . . . . . 5 . . . . . . . . . . . . . . . Rewire . | . . . . . . . . . . . . . . . . . . . . . . . . . . Trap . | . . . . . . . . . . . . . . . . . . . . . . . . . . Miscellaneous . | . . . . . . . . . . . . . . . . . . . . . . . . . . Route ------- -11/Scrapyard -10/Materials (discovered 5 exits: *Mat x3 / *Min x2) -10/Mines (discovered 2 exits: *Mat x2) -9/Materials (discovered 3 exits: *Mat x2 / *Min) -9/Mines (discovered 4 exits: *Mat x2 / *Exi / [*Zio]) -9/Exiles -8/Mines (discovered 2 exits: *Mat x2) -8/Materials (discovered 3 exits: *Fac x3) -7/Factory (discovered 7 exits: *Fac x4 / *Sto / [*Low x2]) -7/Waste -7/Factory (discovered 3 exits: *Fac x3) -6/Factory -6/Waste -6/Factory (discovered 6 exits: *Fac x4 / *Low x2) -6/Lower Caves -6/Lower Caves (discovered 2 exits: *Fac / *Dat) -6/Data Miner -5/Proximity Caves -5/Factory -5/Upper Caves -5/Upper Caves (discovered 2 exits: *Fac / *War) -5/Warlord -4/Proximity Caves -4/Factory (discovered 7 exits: *Res x4 / *Upp x2 / Arm) -4/Upper Caves -4/Upper Caves (discovered 1 exit: *Res) History --------- Turn | Location | Event 16 | -11/Scrapyard | Discovered new exit (range 3) 44 | -11/Scrapyard | Entered Materials 64 | -10/Materials | Discovered new exit (range 16) 174 | -10/Materials | Discovered new exit (range 7) 241 | -10/Materials | Discovered new exit (range 3) 309 | -10/Materials | Build established: Mutant 478 | -10/Materials | Discovered new exit (range 14) 1121 | -10/Materials | Discovered new exit (range 7) 1236 | -10/Materials | Repaired Lgt. Treads 1263 | -10/Materials | Repaired Ion Engine 1289 | -10/Materials | Repaired EM Pulse Gun 1516 | -10/Materials | Entered Mines 1705 | -10/Mines | Assembled infested the area 1710 | -10/Mines | Assisted by a Guerilla fighting off Assembled 1973 | -10/Mines | Core integrity fell below 50% 2016 | -10/Mines | Lost 3 parts (1n2w) 2134 | -10/Mines | Assisted by bots powering up and referring to "LRC-V3" 2212 | -10/Mines | Learned location of Storage (-7) 2282 | -10/Mines | Discovered new exit (range 7) 2416 | -10/Mines | Discovered new exit (range 16) 2868 | -10/Mines | Received a Rocket Launcher from a helpful Derelict 3163 | -10/Mines | Entered Materials 3163 | -9/Materials | Accompanied by 2 allies 3163 | -9/Materials | Evolved 2 slots: Utility x2 3462 | -9/Materials | Build established: Hauler-Mutant 3900 | -9/Materials | Repaired EM Pulse Gun 3927 | -9/Materials | Repaired EM Pulse Gun 4298 | -9/Materials | Discovered new exit (range 7) 4560 | -9/Materials | Central database locked down 4577 | -9/Materials | Discovered new exit (range 8) 4889 | -9/Materials | Discovered new exit (range 16) 5463 | -9/Materials | Entered Mines 5464 | -9/Mines | Met a Derelict testing a Signal Generator 5483 | -9/Mines | Discovered new exit (range 16) 5491 | -9/Mines | A Derelict revealed a hidden shortcut to a safe place 5720 | -9/Mines | Met a Derelict who couldn't figure out how to use a Trap Extractor 5772 | -9/Mines | Found a hidden stash of uninstalled traps 5827 | -9/Mines | Identified exit to Materials 5933 | -9/Mines | Deemed a non-threat by the Exiles lab entrance 6769 | -9/Mines | Discovered new exit (range 5) 6778 | -9/Mines | Entered Exiles 6820 | -9/Exiles | Met 8R-AWN 6849 | -9/Exiles | Met EX-HEX 6902 | -9/Exiles | Met EX-BIN 6921 | -9/Exiles | Met EX-DEC 6938 | -9/Exiles | Learned location of Zion (-7) 7232 | -9/Exiles | Aligned with FarCom system 7234 | -9/Exiles | Given EX-Vault access code 7278 | -9/Exiles | Opened EX-Vault 7291 | -9/Exiles | Found AWS/Gauss 7298 | -9/Exiles | Found Deploy-a-Sentry 7301 | -9/Exiles | Found Deploy-a-Sentry 7342 | -9/Exiles | Warned to stay clear of 0b10 Research branches 7359 | -9/Exiles | Exiles lab attacked by MAIN.C 7469 | -9/Exiles | Discovered new exit (range 14) 7496 | -9/Exiles | Stole two prototypes: AWS/Gauss, Deploy-a-Sentry 7496 | -9/Exiles | Entered Mines 8050 | -8/Mines | Discovered exit to Materials (range 11) 8305 | -8/Mines | Discovered exit to Materials (range 10) 8877 | -8/Mines | Entered Materials 8877 | -8/Materials | Evolved 2 slots: Propulsion x1, Utility x1 10094 | -8/Materials | Repaired Hvy. Assault Rifle 10147 | -8/Materials | Repaired Imp. Assault Rifle 10784 | -8/Materials | Discovered new exit (range 5) 11709 | -8/Materials | Central database locked down 11923 | -8/Materials | Lost 3 parts (3n) 12397 | -8/Materials | Discovered new exit (range 5) 14596 | -8/Materials | Discovered new exit (range 4) 14883 | -8/Materials | Entered Factory 14883 | -7/Factory | Evolved 2 slots: Propulsion x1, Utility x1 14885 | -7/Factory | FarCom data flow suspended 15067 | -7/Factory | Repaired Imp. Assault Rifle 15548 | -7/Factory | Build established: Hauler-Skirmisher 16712 | -7/Factory | DAS Turret deployed 16851 | -7/Factory | Discovered new exit (range 18) 16851 | -7/Factory | Discovered new exit (range 15) 16859 | -7/Factory | Identified exit to Factory 17190 | -7/Factory | Build established: Scavenger-Scout 17451 | -7/Factory | Discovered exit to Factory (range 22) 17832 | -7/Factory | Discovered new exit (range 6) 17834 | -7/Factory | Identified exit to Storage 18091 | -7/Factory | Lost 3 parts (2n1u) 18569 | -7/Factory | Lost 3 parts (1p1n1w) 18635 | -7/Factory | Discovered new exit (range 10) 18798 | -7/Factory | Discovered exit to Factory (range 12) 18857 | -7/Factory | Build established: Assassin 19406 | -7/Factory | Discovered exit to Factory (range 22) 19638 | -7/Factory | Sucked down chute 19638 | -7/Factory | Entered Waste 19639 | -7/Waste | Joined by Warlord forces that had cleared the area 19670 | -7/Waste | A Compactor rumbled back to life 19670 | -7/Waste | Crushed by Compactor (1 part destroyed, 1 dropped) 19670 | -7/Waste | Spotted C-40 Crusher 19679 | -7/Waste | Allies destroyed C-40 Crusher 19700 | -7/Waste | A Compactor rumbled back to life 19700 | -7/Waste | Crushed by Compactor (1 part destroyed, 2 dropped) 19700 | -7/Waste | Allies destroyed C-40 Crusher 19713 | -7/Waste | Found Damper Plating 19731 | -7/Waste | Lost 4 parts (1p3n) 19940 | -7/Waste | A Compactor rumbled back to life 19940 | -7/Waste | Spotted C-40 Crusher 19941 | -7/Waste | Allies destroyed C-40 Crusher 19981 | -7/Waste | Build established: Mutant 20043 | -7/Waste | Discovered new exit (range 22) 20070 | -7/Waste | A Compactor rumbled back to life 20070 | -7/Waste | Spotted C-40 Crusher 20072 | -7/Waste | Allies destroyed C-40 Crusher 20080 | -7/Waste | Found Damper Plating 20157 | -7/Waste | Identified exit to Factory 20161 | -7/Waste | Entered Factory 20161 | -7/Factory | Accompanied by 12 allies 20549 | -7/Factory | Core integrity fell below 50% 20952 | -7/Factory | Build established: Assassin 21636 | -7/Factory | Build established: Scavenger-Scout 22227 | -7/Factory | Discovered exit to Factory (range 9) 22362 | -7/Factory | Fabricated Lrn. Sensor Array? 22365 | -7/Factory | Local fabrication network quarantined 22568 | -7/Factory | Discovered exit to Factory (range 10) 23064 | -7/Factory | Discovered exit to Factory (range 18) 23072 | -7/Factory | Entered another Factory area 23072 | -6/Factory | Evolved 2 slots: Utility x2 23135 | -6/Factory | Sucked down chute 23135 | -6/Factory | Entered Waste 23140 | -6/Waste | Spotted C-40 Crusher 23258 | -6/Waste | Spotted C-40 Crusher 23279 | -6/Waste | Spotted C-40 Crusher 23283 | -6/Waste | Warlord forces began an assault 23336 | -6/Waste | Spotted C-40 Crusher 23339 | -6/Waste | Allies destroyed C-40 Crusher 23341 | -6/Waste | Allies destroyed C-40 Crusher 23353 | -6/Waste | Allies destroyed C-40 Crusher 23376 | -6/Waste | Build established: Hacker-Scout 23388 | -6/Waste | Allies destroyed C-40 Crusher 23496 | -6/Waste | Discovered new exit (range 11) 23604 | -6/Waste | Identified exit to Factory 23604 | -6/Waste | Entered Factory 23604 | -6/Factory | Accompanied by 2 allies 23652 | -6/Factory | Spotted B-75 Beast 23742 | -6/Factory | Discovered new exit (range 21) 24239 | -6/Factory | Discovered new exit (range 15) 24488 | -6/Factory | Discovered new exit (range 12) 24492 | -6/Factory | Identified exit to Factory 24596 | -6/Factory | Discovered exit to Factory (range 7) 24829 | -6/Factory | Discovered exit to Factory (range 22) 24891 | -6/Factory | Identified exit to Lower Caves 24983 | -6/Factory | Entered Lower Caves 25038 | -6/Lower Caves | Lost 3 parts (1p2n) 25473 | -6/Lower Caves | Learned Factory terminal intel 25595 | -6/Lower Caves | Spotted B-75 Beast 25625 | -6/Lower Caves | Discovered new exit (range 13) 25630 | -6/Lower Caves | Identified exit to Lower Caves 25630 | -6/Lower Caves | Entered another Lower Caves area 25630 | -6/Lower Caves | Spotted BY-U4G(f) 25631 | -6/Lower Caves | Encountered a Master Thief 25634 | -6/Lower Caves | Spotted S6-G7E(f) 25635 | -6/Lower Caves | Encountered a Master Thief 25636 | -6/Lower Caves | AWS/Gauss stolen by Master Thief 25636 | -6/Lower Caves | Antigrav Array stolen by Master Thief 25644 | -6/Lower Caves | Discovered exit to Factory (range 19) 25888 | -6/Lower Caves | Spotted B-75 Beast 25911 | -6/Lower Caves | Learned Factory security intel 26052 | -6/Lower Caves | Found Alien Artifact 26058 | -6/Lower Caves | Identified Core Expander 26058 | -6/Lower Caves | Installed Core Expander, added new Propulsion slot 26180 | -6/Lower Caves | Discovered new exit (range 14) 26185 | -6/Lower Caves | Identified exit to Data Miner 26185 | -6/Lower Caves | Entered Data Miner 26186 | -6/Data Miner | Discovered new exit (range 6) 26192 | -6/Data Miner | Met Data Miner 26207 | -6/Data Miner | Learned location of Section 7 (-2) 26207 | -6/Data Miner | Acquired the access code to Warlord's prototype stash 26215 | -6/Data Miner | Received God Mode back door access code from Data Miner 26224 | -6/Data Miner | Identified exit to Proximity Caves 26226 | -6/Data Miner | Entered Proximity Caves 26365 | -5/Proximity Caves | Escorted by Enhanced Grunt 26397 | -5/Proximity Caves | Learned Factory non-interactive machine intel 26486 | -5/Proximity Caves | Discovered exit to Factory (range 12) 26491 | -5/Proximity Caves | Entered Factory 26491 | -5/Factory | Evolved 2 slots: Power x1, Utility x1 26493 | -5/Factory | Loaded intel: 184 non-interactive machine locations 26494 | -5/Factory | Loaded intel: 22 terminal locations 26847 | -5/Factory | Discovered new exit (range 11) 26851 | -5/Factory | Identified exit to Upper Caves 26851 | -5/Factory | Entered Upper Caves 26965 | -5/Upper Caves | Discovered new exit (range 14) 26989 | -5/Upper Caves | Identified exit to Upper Caves 26989 | -5/Upper Caves | Entered another Upper Caves area 26998 | -5/Upper Caves | Discovered new exit (range 17) 27009 | -5/Upper Caves | Identified exit to Factory 27030 | -5/Upper Caves | Learned Factory stockpile data 27032 | -5/Upper Caves | Encountered a Warlord checkpoint 27163 | -5/Upper Caves | Found Alien Artifact 27221 | -5/Upper Caves | Spotted VT-1G8(f) 27223 | -5/Upper Caves | Encountered a Master Thief 27223 | -5/Upper Caves | Spotted RB-XJ7(f) 27224 | -5/Upper Caves | Encountered a Master Thief 27224 | -5/Upper Caves | Spotted R9-6XS(f) 27225 | -5/Upper Caves | Encountered a Master Thief 27225 | -5/Upper Caves | Spotted 2W-ZH3(f) 27225 | -5/Upper Caves | Spotted HC-LKH(f) 27226 | -5/Upper Caves | Encountered a Master Thief 27226 | -5/Upper Caves | Encountered a Master Thief 27227 | -5/Upper Caves | Alien Artifact stolen by Master Thief 27231 | -5/Upper Caves | Lgt. Antimatter Reactor stolen by Master Thief 27231 | -5/Upper Caves | Mic. Fission Core stolen by Master Thief 27232 | -5/Upper Caves | Antigrav System stolen by Master Thief 27233 | -5/Upper Caves | Gyrokinetic Inverter stolen by Master Thief 27254 | -5/Upper Caves | Discovered new exit (range 13) 27260 | -5/Upper Caves | Learned location of Extension (-5) 27260 | -5/Upper Caves | Learned location of 1 exit from Research 27260 | -5/Upper Caves | Learned 8 Research zone layouts 27260 | -5/Upper Caves | Learned Extension trap positions 27260 | -5/Upper Caves | Learned Factory emergency access door positions 27260 | -5/Upper Caves | Learned Extension stockpile data 27260 | -5/Upper Caves | Learned Armory stockpile data 27260 | -5/Upper Caves | Learned Factory terminal intel 27273 | -5/Upper Caves | Identified exit to Warlord 27288 | -5/Upper Caves | Entered Warlord 27314 | -5/Warlord | Discovered new exit (range 9) 27317 | -5/Warlord | Identified exit to Proximity Caves 27442 | -5/Warlord | Met Warlord 27467 | -5/Warlord | Warlord's base attacked by MAIN.C 27578 | -5/Warlord | Found Prototype Energy Gun 27578 | -5/Warlord | Identified Vortex Rail 27645 | -5/Warlord | Opened Warlord's prototype stash 27817 | -5/Warlord | Warlord forces counterattacked 27851 | -5/Warlord | Found Prototype Reactor 27851 | -5/Warlord | Identified Vortex Chain Reactor 27869 | -5/Warlord | Found Prototype Hackware 27869 | -5/Warlord | Identified Ghost Barrier 27872 | -5/Warlord | Found Prototype Device 27872 | -5/Warlord | Identified Exp. Focal Shield 27876 | -5/Warlord | Found Prototype Device 27876 | -5/Warlord | Identified Exp. Cloaking Device 27920 | -5/Warlord | Opened side exit 28142 | -5/Warlord | Warlord base infiltrated, sounded retreat 28166 | -5/Warlord | Entered Proximity Caves 28232 | -4/Proximity Caves | Build established: Hacker-Ninja 28552 | -4/Proximity Caves | Received a Behemoth hack from an annoying Tinkerer 28608 | -4/Proximity Caves | Discovered exit to Factory (range 8) 28652 | -4/Proximity Caves | Entered Factory 28652 | -4/Factory | Evolved 2 slots: Propulsion x1, Utility x1 28655 | -4/Factory | Loaded intel: 20 terminal locations 28731 | -4/Factory | Fabricated Exp. Sensor Array (x1) 28907 | -4/Factory | Spotted B-86 Titan 29033 | -4/Factory | Identified exit to Research 29206 | -4/Factory | Found Molecular Scythe 29209 | -4/Factory | Found Molecular Scythe 29211 | -4/Factory | Found Molecular Scythe 29213 | -4/Factory | Found Faulty Molecular Scythe 29358 | -4/Factory | Build established: Hacker-Mutant 30539 | -4/Factory | Identified exit to Upper Caves 30539 | -4/Factory | Identified exit to Armory 30559 | -4/Factory | Build established: Hacker-Sprinter 31532 | -4/Factory | Build established: Hacker-Mutant 31612 | -4/Factory | Fabricated Exp. Signal Interpreter? 32190 | -4/Factory | Entered Upper Caves 32192 | -4/Upper Caves | Attracted the attention of an 0b10 checkpoint 32196 | -4/Upper Caves | Learned location of Testing (-2) 32198 | -4/Upper Caves | Spotted B-86 Titan 32215 | -4/Upper Caves | Identified exit to Upper Caves 32320 | -4/Upper Caves | Encountered a Warlord checkpoint 32396 | -4/Upper Caves | Entered another Upper Caves area 32605 | -4/Upper Caves | Lost 3 parts (2n1u) 32761 | -4/Upper Caves | Discovered exit to Research (range 9) 32836 | -4/Upper Caves | Acquired the password to a Derelict Tinkerer's latest research 32843 | -4/Upper Caves | Found Prototype Special Weapon 32854 | -4/Upper Caves | Build established: Hauler-Mutant 33061 | -4/Upper Caves | Learned location of Quarantine (-3) 33133 | -4/Upper Caves | Spotted 2A-Q51(f) 33134 | -4/Upper Caves | Spotted ST-UPG(f) 33134 | -4/Upper Caves | Spotted 43-KAI(f) 33135 | -4/Upper Caves | Encountered a Master Thief 33135 | -4/Upper Caves | Encountered a Master Thief 33135 | -4/Upper Caves | Spotted 50-MPB(f) 33136 | -4/Upper Caves | Encountered a Master Thief 33136 | -4/Upper Caves | Encountered a Master Thief 33143 | -4/Upper Caves | Spotted MN-IKJ(f) 33144 | -4/Upper Caves | Encountered a Master Thief 33149 | -4/Upper Caves | Caught by Unaware searching for contraband prototypes 33152 | -4/Upper Caves | Vortex Chain Reactor stolen by Master Thief 33154 | -4/Upper Caves | Exp. Cloaking Device stolen by Master Thief 33157 | -4/Upper Caves | Lrg. Storage Unit stolen by Master Thief 33159 | -4/Upper Caves | Exp. Focal Shield stolen by Master Thief 33174 | -4/Upper Caves | Cld. Antigrav System stolen by Master Thief 33177 | -4/Upper Caves | Self-destructed Last Messages --------------- 33061_ Acquired derelict log, extracted data. World map updated: -3/Quarantine. 33070_ Searching scrap... 33070_ Found Mak. Sword. 33070_ Found Adv. Shield Generator. 33070_ Found 11 Matter. 33148_ Cld. Antigrav System destroyed. 33149_ X-62 Marksman: "CONFIRMED SUSPICIOUS DERELICT. COMMENCE PROTOTYPE CONTRABAND SEARCH." 33150_ Exp. Signal Interpreter ripped off. 33152_ Vortex Chain Reactor ripped off. 33152_ Slammed into ST-UPG(f). 33153_ Slammed into 50-MPB(f). 33154_ Exp. Cloaking Device ripped off. 33154_ Penetrated by Slug. 33157_ Lrg. Storage Unit ripped off. 33159_ Exp. Focal Shield ripped off. 33162_ Slug penetrates Wall. 33172_ Ghost Barrier ripped off. 33174_ Cld. Antigrav System ripped off. Map ----- +----------------------------------------------------+ | ???????????????????????????????# ????# | | ?????????????????????????????? ???# | | ?????????????????????????????? ?# ## #### | | ????????????????????????????? ???## #??? | | ????????????????????????????? ??????## #??# | | ????????????????????????????? ?###?## ##?# | | ???????????????????????????? ## ## #?# | | ???????????????????????????? #?# | | ???????????????????????????? #?# | | ????????????????????????????? "" #? | | ????????????????????????????????""" # ## | | ?????????????????????????????????" ??## #?## | | ??????????????????????????????????????## #??? | | ???????????????????????????????????????## #??? | | ????????????????????????????????????????# #??? | | ????????????????????????????????????????## ##### | | ??????????????????????????????????????#### #### | | ?????????????????????????????????????## #?# ! | | ?????????????????????????????????????# #?# # | | ??????????????????####???????????????# #?# # | | ??????????????##?## ##?###????####??## #### # | | ??????????????# ## ### ##???# ##### ### | | ??????????????# ##### ##!% ### | | ?????????????## !!= ! | | ####?????????# ### f | | # ##???????# #?##@##### #### | | ##??????## ## #??### #??#### | | #???????# ??# #????# ? #??????# | | #???????#???# #????# #??????? | | ? #???????????# ##???## ## #??????? | | ## #???????????# ###??###?## #?##??? | | ## ######????### ##??????# #?# ##? | | $ ? #?#### ##???? ### #?# # | | ### ### #???? #??# ??# | | #?# ##??? #### ??# | | #??## ###????? ???# | | # #???# ### ##???????# ## #### | | # #???#???## #???????? ## | | ## ###?###### #???????? ?? | | ?## ### ##??????????? #### | | ??## ## ?? ???## | | ???# ####!/ ??? #???# | | ???# ## ###??#% # ## ???# #???# | | ???# ### ##????# ## ##????????# #???# # | | ???# #?# #?????# #?# ####?????????# #???## | | ??? #?# #?????# #??####?#######????# #????## | | ??#####?# ####### ###?????# #????# #?????? | | ????????# # #?????# """ #????# #?????? | | ????????# # #?????# """ #????# #?????? | | ????????# # "#### #?????# """ ####?# #?????? | +----------------------------------------------------+ Best States ------------- Heat Dissipation 43 Energy Generation 55 Energy Capacity 700 Matter Stores 300 Matter Capacity 500 Sight Range 22 Robot Scan Range 30 Terrain Scan Range 20 Terrain Scan Density 10 ECM Strength 3 Jamming Range 14 Cloak Strength 4 Armor Coverage 1200 Resistance: KI 30 Resistance: EM 90 Propulsion Shielding 66 Evasion (%) 58 Targeting Accuracy 8 Core Analysis 8 Recoil Reduction 4 Offensive Hacking 22 Defensive Hacking 32 Item Schematics ----------------- Hacking Suite | -9/Materials | Scanalyzed Lrg. Storage Unit | -8/Materials | Scanalyzed System Backup Module | -8/Materials | Scanalyzed Lrn. Sensor Array | -7/Factory | Hacked Adv. Signal Interpreter | -7/Factory | Hacked Antigrav Array | -6/Factory | Scanalyzed Proton Missile Launcher | -6/Factory | Scanalyzed Lgt. Fission Core | -6/Factory | Scanalyzed Nuclear Pulse Thruster | -6/Factory | Scanalyzed System Restoration Module | -6/Factory | Hacked Imp. Linear Gravjet | -6/Factory | Hacked Combat Drone Bay | -6/Data Miner | Free Lgt. Regenerative Plating | -6/Data Miner | Free Exp. Flexi-carbon Leg | -6/Data Miner | Free Exp. Cesium-ion Thruster | -6/Data Miner | Free Triangulator | -6/Data Miner | Free Exp. Terrain Scanner | -6/Data Miner | Free Exp. Targeting Computer | -6/Data Miner | Free Tactical Coordination Suite | -6/Data Miner | Free Cloaking Device | -6/Data Miner | Free Mni. Smartbomb Launcher | -6/Data Miner | Free Exp. Sensor Array | -5/Factory | Hacked Exp. Signal Interpreter | -4/Factory | Hacked Q-thruster | -4/Factory | Hacked Robot Schematics ------------------ S-27 Virus | -6/Data Miner | Free G-50 Soldier | -6/Data Miner | Free L-41 Fighter | -6/Data Miner | Free P-70 Sage | -6/Data Miner | Free I-36 Angel | -6/Data Miner | Free Fabricated ------------ Lrn. Sensor Array | x1 | -7/Factory Exp. Sensor Array | x1 | -4/Factory Exp. Signal Interpreter | x1 | -4/Factory Alien Tech Used ----------------- Core Expander Achievements -------------- Reappropriation Challenges ------------ None Game ------ Seed ActuatorBattleSegregator Manual? 0 Play Time 03:51:30 Cumulative 228.5 hours Start 2021.01.19 @ 00:12:08 End 2021.01.19 @ 04:12:34 Sessions 1 Manual Loads 0 Difficulty Rogue Special Mode None Game No. 164 Rogue 164 Adventurer 0 Explorer 0 Win Type - Total 6 Types 6/0/0/0/0/0/0/0/0 Lore% 54 Gallery% 63 Achievement% 47 Wizard Run 0 Options --------- ASCII 1 Keyboard 1 Movement Arrows Keybinds 0 Fullscreen 1 Font 24/Proggy Map View 76x50 Tactical HUD 1 Map Filters NONE Filters NONE Steam 1 RUN: 3eb202d3-77d5-4920-b29a-cf5c2aae06bc